[Event "Mitropa Online Cup Open 2021"]
[Site "Hybrid"]
[Date "2021.05.04"]
[Round "8.2"]
[White "Baenziger, Fabian"]
[Black "Sahidi, Samir"]
[Result "1-0"]
[ECO "E43"]
[WhiteElo "2400"]
[BlackElo "2406"]
[Annotator "NA"]
[PlyCount "77"]
[EventDate "2021.05.04"]
[EventType "team-tourn"]
[EventCountry "NET"]
[SourceTitle "playchess.com"]
[Source "ChessBase"]
[SourceQuality "1"]
[WhiteTeam "Switzerland"]
[BlackTeam "Slovakia"]
[WhiteTeamCountry "SUI"]
[BlackTeamCountry "SVK"]
[TimeControl "40/5400+30:1800+30"]

1. d4 {[%emt 0:00:00]} Nf6 {[%emt 0:00:08]} 2. c4 {[%emt 0:00:06]} e6 {[%emt 0:00:23]} 3. Nc3 {[%emt 0:00:08]} Bb4 {[%emt 0:00:18]} 4. e3 {[%emt 0:00:06]} O-O {[%emt 0:03:29]} 5. Bd3 {[%emt 0:00:47]} c5 {[%emt 0:04:38]} 6. Nf3 {[%emt 0:00:14]} cxd4 {[%emt 0:03:27]} 7. exd4 {[%emt 0:00:07]} b6 {[%emt 0:00:36]} 8. O-O {[%emt 0:03:28]} Bb7 {[%emt 0:03:11]} 9. Re1 {[%emt 0:06:29]} Bxc3 {[%emt 0:03:28]} 10. bxc3 {[%emt 0:00:21]} d6 {[%emt 0:01:10]} 11. Bf4 {[%emt 0:08:18]} Re8 {[%emt 0:07:04]} 12. Rb1 {[%emt 0:20:31]} Nc6 {[%emt 0:06:58]} 13. d5 {[%emt 0:12:03]} exd5 {[%emt 0:01:12]} 14. Rxe8+ {[%emt 0:02:07]} Qxe8 {[%emt 0:03:32]} 15. cxd5 {[%emt 0:04:12]} Na5 {[%emt 0:10:37]} 16. c4 {[%emt 0:02:20]} Rc8 {[%emt 0:02:07]} 17. Rc1 {[%emt 0:02:52]} Ba6 {[%emt 0:04:35]} 18. Bxd6 {[%emt 0:00:43]} Nxc4 {[%emt 0:02:20]} 19. Bg3 {[%emt 0:03:07]} Nb2 {[%emt 0:21:10]} 20. Bxa6 {[%emt 0:00:25]} Nxd1 {[%emt 0:04:46]} 21. Rxc8 {[%emt 0:00:07]} Qxc8 {[%emt 0:00:35]} 22. Bxc8 {[%emt 0:00:07]} Nxd5 {[%emt 0:00:08]} 23. Bb8 {[%emt 0:02:38]} a5 {[%emt 0:00:44]} 24. Nd4 {[%emt 0:03:17]} N1c3 {[%emt 0:01:48]} 25. Bb7 {[%emt 0:01:07]} a4 {[%emt 0:12:25]} 26. a3 {[%emt 0:01:23]} f6 {[%emt 0:01:07]} 27. Bd6 {[%emt 0:02:02]} Kf7 {[%emt 0:00:53]} 28. Bc6 {[%emt 0:00:07]} Ne7 {[%emt 0:00:32]} 29. Bd7 {[%emt 0:01:16]} Ned5 {[%emt 0:00:16]} 30. Kf1 {[%emt 0:00:31]} g5 {[%emt 0:00:37]} 31. g4 {[%emt 0:04:25]} Kg7 {[%emt 0:00:37]} 32. Bc6 {[%emt 0:01:35]} Kg6 {[%emt 0:00:27]} 33. Nb5 {[%emt 0:00:46]} f5 {[%emt 0:00:32]} 34. Nxc3 {[%emt 0:00:37]} Nxc3 {[%emt 0:00:03]} 35. Be5 {[%emt 0:01:36]} Nb1 {[%emt 0:00:20]} 36. Be8+ {[%emt 0:00:33]} Kh6 {[%emt 0:00:18]} 37. gxf5 {[%emt 0:00:06]} Nd2+ {[%emt 0:01:04]} 38. Kg2 {[%emt 0:00:42]} Nc4 {[%emt 0:00:03]} 39. Bc3 {[%emt 0:00:19]} 1-0

[Event "Mitropa Online Cup Open 2021"]
[Site "Hybrid"]
[Date "2021.05.04"]
[Round "8.3"]
[White "Zelcic, Robert"]
[Black "Nagy, Gabor"]
[Result "1-0"]
[ECO "B48"]
[WhiteElo "2539"]
[BlackElo "2511"]
[Annotator "ChessBase"]
[PlyCount "83"]
[EventDate "2021.05.04"]
[EventType "team-tourn"]
[EventCountry "NET"]
[SourceTitle "playchess.com"]
[Source "ChessBase"]
[SourceQuality "1"]
[WhiteTeam "Croatia"]
[BlackTeam "Hungary"]
[WhiteTeamCountry "CRO"]
[BlackTeamCountry "HUN"]
[TimeControl "40/5400+30:1800+30"]

1. e4 {[%emt 0:00:00]} c5 {[%emt 0:00:22]} 2. Nf3 {[%emt 0:00:06]} e6 {[%emt 0:00:08]} 3. d4 {[%emt 0:00:05]} cxd4 {[%emt 0:00:06]} 4. Nxd4 {[%emt 0:00:03]} Nc6 {[%emt 0:00:12]} 5. Nc3 {[%emt 0:00:06]} Qc7 {[%emt 0:00:11]} 6. Be3 {[%emt 0:00:05]} a6 {[%emt 0:00:10]} 7. Bd3 {[%emt 0:00:10]} Nf6 {[%emt 0:00:17]} 8. O-O {[%emt 0:00:06]} b5 {[%emt 0:00:21]} 9. Nxc6 {[%emt 0:00:07]} Qxc6 {[%emt 0:00:13]} 10. a3 {[%emt 0:15:03]} Bb7 {[%emt 0:02:17]} 11. Qe1 {[%emt 0:04:03]} Be7 {[%emt 0:05:12]} 12. f3 {[%emt 0:00:45]} Qc7 {[%emt 0:02:07]} 13. Bd4 {[%emt 0:05:06]} e5 {[%emt 0:04:57]} 14. Qg3 {[%emt 0:05:50]} Bc5 {[%emt 0:01:24]} 15. Bxc5 {[%emt 0:02:22]} Qxc5+ {[%emt 0:00:20]} 16. Qf2 {[%emt 0:00:04]} Qxf2+ {[%emt 0:05:54]} 17. Rxf2 {[%emt 0:04:36]} O-O {[%emt 0:02:46]} 18. Re2 {[%emt 0:14:00]} Bc6 {[%emt 0:02:16]} 19. a4 {[%emt 0:03:00]} b4 {[%emt 0:05:02]} 20. Nd1 {[%emt 0:00:09]} Rfd8 {[%emt 0:09:33]} 21. Ne3 {[%emt 0:00:32]} a5 {[%emt 0:00:55]} 22. Bc4 {[%emt 0:04:03]} d5 {[%emt 0:10:48]} 23. exd5 {[%emt 0:00:10]} Nxd5 {[%emt 0:00:07]} 24. Ng4 {[%emt 0:00:07]} Nf4 {[%emt 0:04:27]} 25. Rxe5 {[%emt 0:01:20]} Rd2 {[%emt 0:00:44]} 26. Ne3 {[%emt 0:02:12]} g6 {[%emt 0:03:46]} 27. Bf1 {[%emt 0:03:00]} Kg7 {[%emt 0:08:47]} 28. Rc5 {[%emt 0:13:14]} Bd7 {[%emt 0:04:37]} 29. b3 {[%emt 0:05:09]} Re8 {[%emt 0:01:57]} 30. Re1 {[%emt 0:00:27]} Ne6 {[%emt 0:06:21]} 31. Rd5 {[%emt 0:06:03]} Rxd5 {[%emt 0:00:52]} 32. Nxd5 {[%emt 0:00:05]} Rc8 {[%emt 0:00:22]} 33. Nb6 {[%emt 0:00:52]} Rc7 {[%emt 0:00:06]} 34. Bc4 {[%emt 0:01:08]} Be8 {[%emt 0:01:42]} 35. Re5 {[%emt 0:03:42]} Rc6 {[%emt 0:02:10]} 36. Bxe6 {[%emt 0:00:07]} Kf6 {[%emt 0:00:27]} 37. Nd7+ {[%emt 0:01:10]} Bxd7 {[%emt 0:00:42]} 38. Bxd7 {[%emt 0:00:17]} Rd6 {[%emt 0:00:06]} 39. Rxa5 {[%emt 0:00:07]} Rxd7 {[%emt 0:00:06]} 40. h4 {[%emt 0:00:00]} Rc7 {[%emt 0:00:00]} 41. Rb5 {[%emt 0:01:37]} Rxc2 {[%emt 0:00:32]} 42. Rxb4 {[%emt 0:00:04]} 1-0

[Event "Mitropa Online Cup Open 2021"]
[Site "Hybrid"]
[Date "2021.05.04"]
[Round "8.4"]
[White "Shengelia, David"]
[Black "Spalir, Jernej"]
[Result "1-0"]
[ECO "D46"]
[WhiteElo "2521"]
[BlackElo "2389"]
[Annotator "ChessBase"]
[PlyCount "61"]
[EventDate "2021.05.04"]
[EventType "team-tourn"]
[EventCountry "NET"]
[SourceTitle "playchess.com"]
[Source "ChessBase"]
[SourceQuality "1"]
[WhiteTeam "Austria"]
[BlackTeam "Slovenia"]
[WhiteTeamCountry "AUT"]
[BlackTeamCountry "SLO"]
[TimeControl "40/5400+30:1800+30"]

1. c4 {[%emt 0:00:00]} c6 {[%emt 0:00:13]} 2. Nf3 {[%emt 0:00:20]} d5 {[%emt 0:00:05]} 3. e3 {[%emt 0:00:15]} Nf6 {[%emt 0:00:10]} 4. Nc3 {[%emt 0:00:52]} e6 {[%emt 0:01:32]} 5. b3 {[%emt 0:01:04]} Nbd7 {[%emt 0:01:10]} 6. Bb2 {[%emt 0:01:00]} Bd6 {[%emt 0:00:05]} 7. d4 {[%emt 0:05:58]} O-O {[%emt 0:01:09]} 8. Bd3 {[%emt 0:10:44]} Qe7 {[%emt 0:03:27]} 9. Qc2 {[%emt 0:04:17]} Re8 {[%emt 0:09:02]} 10. O-O-O {[%emt 0:12:10]} dxc4 {[%emt 0:10:15]} 11. bxc4 {[%emt 0:08:17]} e5 {[%emt 0:00:11]} 12. Ne4 {[%emt 0:06:07]} exd4 {[%emt 0:10:10]} 13. Nxd6 {[%emt 0:01:52]} Qxd6 {[%emt 0:00:06]} 14. exd4 {[%emt 0:00:35]} b5 {[%emt 0:05:38]} 15. c5 {[%emt 0:08:33]} Qd5 {[%emt 0:07:01]} 16. Ne5 {[%emt 0:11:21]} Nf8 {[%emt 0:00:40]} 17. a3 {[%emt 0:09:36]} Be6 {[%emt 0:07:29]} 18. f4 {[%emt 0:04:19]} Qa2 {[%emt 0:02:55]} 19. Qd2 {[%emt 0:01:25]} Bd5 {[%emt 0:02:45]} 20. Rhe1 {[%emt 0:01:12]} N6d7 {[%emt 0:01:27]} 21. Bb1 {[%emt 0:05:33]} Qb3 {[%emt 0:00:15]} 22. Bc2 {[%emt 0:00:14]} Qa2 {[%emt 0:00:05]} 23. Bb1 {[%emt 0:00:22]} Qb3 {[%emt 0:00:04]} 24. Bc2 {[%emt 0:00:06]} Qa2 {[%emt 0:00:05]} 25. Re3 {[%emt 0:00:15]} Nxe5 {[%emt 0:00:23]} 26. dxe5 {[%emt 0:00:54]} Rad8 {[%emt 0:03:18]} 27. f5 {[%emt 0:03:11]} Qc4 {[%emt 0:03:47]} 28. Qb4 {[%emt 0:00:19]} Bxg2 {[%emt 0:09:33]} 29. Rxd8 {[%emt 0:00:34]} Rxd8 {[%emt 0:00:07]} 30. Qxc4 {[%emt 0:00:04]} bxc4 {[%emt 0:00:06]} 31. Rg3 {[%emt 0:00:03]} 1-0

[Event "Mitropa Online Cup Open 2021"]
[Site "Hybrid"]
[Date "2021.05.04"]
[Round "8.4"]
[White "Sebenik, Matej"]
[Black "Dragnev, Valentin"]
[Result "0-1"]
[ECO "D45"]
[WhiteElo "2498"]
[BlackElo "2559"]
[Annotator "ChessBase"]
[PlyCount "66"]
[EventDate "2021.05.04"]
[EventType "team-tourn"]
[EventCountry "NET"]
[SourceTitle "playchess.com"]
[Source "ChessBase"]
[SourceQuality "1"]
[WhiteTeam "Slovenia"]
[BlackTeam "Austria"]
[WhiteTeamCountry "SLO"]
[BlackTeamCountry "AUT"]
[TimeControl "40/5400+30:1800+30"]

1. c4 {[%emt 0:00:00]} c6 {[%emt 0:00:50]} 2. Nf3 {[%emt 0:00:37]} d5 {[%emt 0:00:16]} 3. e3 {[%emt 0:00:09]} Nf6 {[%emt 0:00:17]} 4. Nc3 {[%emt 0:00:09]} e6 {[%emt 0:00:15]} 5. d4 {[%emt 0:03:35]} Nbd7 {[%emt 0:00:11]} 6. Qc2 {[%emt 0:00:03]} Bd6 {[%emt 0:00:13]} 7. b3 {[%emt 0:00:03]} O-O {[%emt 0:00:18]} 8. Be2 {[%emt 0:00:03]} b6 {[%emt 0:00:14]} 9. O-O {[%emt 0:00:07]} Bb7 {[%emt 0:00:07]} 10. Bb2 {[%emt 0:00:02]} Qe7 {[%emt 0:00:15]} 11. Rfe1 {[%emt 0:00:04]} Rfe8 {[%emt 0:07:44]} 12. Rad1 {[%emt 0:00:30]} Rad8 {[%emt 0:00:19]} 13. Bf1 {[%emt 0:00:52]} e5 {[%emt 0:04:57]} 14. dxe5 {[%emt 0:00:37]} Nxe5 {[%emt 0:00:09]} 15. Nd4 {[%emt 0:00:13]} dxc4 {[%emt 0:02:46]} 16. Nf5 {[%emt 0:00:34]} Qe6 {[%emt 0:00:55]} 17. Nxd6 {[%emt 0:01:28]} Rxd6 {[%emt 0:05:22]} 18. Rxd6 {[%emt 0:00:16]} Qxd6 {[%emt 0:00:09]} 19. Rd1 {[%emt 0:00:18]} Qe6 {[%emt 0:06:20]} 20. Ne4 {[%emt 0:12:16]} cxb3 {[%emt 0:04:17]} 21. axb3 {[%emt 0:37:36]} Nd5 {[%emt 0:01:21]} 22. Ng5 {[%emt 0:12:18]} Qh6 {[%emt 0:05:16]} 23. Bxe5 {[%emt 0:02:04]} Qxg5 {[%emt 0:10:47]} 24. Bg3 {[%emt 0:00:25]} h5 {[%emt 0:01:18]} 25. Qc4 {[%emt 0:19:56]} Qe7 {[%emt 0:00:47]} 26. Be2 {[%emt 0:01:27]} b5 {[%emt 0:04:52]} 27. Qh4 {[%emt 0:05:44]} Nc3 {[%emt 0:00:25]} 28. Rd2 {[%emt 0:00:05]} Qa3 {[%emt 0:17:56]} 29. Bf1 {[%emt 0:00:58]} Qc1 {[%emt 0:07:25]} 30. Qd4 {[%emt 0:00:05]} b4 {[%emt 0:00:33]} 31. Qd7 {[%emt 0:01:47]} Rf8 {[%emt 0:01:18]} 32. Qxb7 {[%emt 0:00:28]} Qxd2 {[%emt 0:00:23]} 33. Qxc6 {[%emt 0:00:03]} Ne2+ {[%emt 0:01:18]} 0-1

[Event "Mitropa Online Cup Open 2021"]
[Site "Hybrid"]
[Date "2021.05.04"]
[Round "8.5"]
[White "Brunello, Sabino"]
[Black "Travadon, Loic"]
[Result "1-0"]
[ECO "D38"]
[WhiteElo "2519"]
[BlackElo "2414"]
[Annotator "ChessBase"]
[PlyCount "87"]
[EventDate "2021.05.04"]
[EventType "team-tourn"]
[EventCountry "NET"]
[SourceTitle "playchess.com"]
[Source "ChessBase"]
[SourceQuality "1"]
[WhiteTeam "Italy"]
[BlackTeam "France"]
[WhiteTeamCountry "ITA"]
[BlackTeamCountry "FRA"]
[TimeControl "40/5400+30:1800+30"]

1. d4 {[%emt 0:00:07]} Nf6 {[%emt 0:04:03]} 2. c4 {[%emt 0:00:07]} e6 {[%emt 0:00:06]} 3. Nf3 {[%emt 0:00:26]} d5 {[%emt 0:00:06]} 4. Nc3 {[%emt 0:00:29]} Bb4 {[%emt 0:00:06]} 5. Qa4+ {[%emt 0:01:14]} Nc6 {[%emt 0:00:09]} 6. a3 {[%emt 0:01:36]} Bxc3+ {[%emt 0:00:39]} 7. bxc3 {[%emt 0:00:07]} Ne4 {[%emt 0:03:45]} 8. Qc2 {[%emt 0:05:19]} Nd6 {[%emt 0:02:26]} 9. c5 {[%emt 0:20:46]} Ne4 {[%emt 0:00:50]} 10. e3 {[%emt 0:01:05]} b6 {[%emt 0:01:20]} 11. c4 {[%emt 0:04:43]} bxc5 {[%emt 0:01:31]} 12. cxd5 {[%emt 0:03:13]} exd5 {[%emt 0:00:07]} 13. dxc5 {[%emt 0:00:12]} O-O {[%emt 0:01:15]} 14. Bb2 {[%emt 0:04:56]} Rb8 {[%emt 0:03:28]} 15. Bd3 {[%emt 0:01:25]} Qe7 {[%emt 0:00:51]} 16. O-O {[%emt 0:07:13]} Qxc5 {[%emt 0:02:28]} 17. Rfc1 {[%emt 0:04:45]} Qxc2 {[%emt 0:00:22]} 18. Rxc2 {[%emt 0:00:11]} Rb6 {[%emt 0:01:44]} 19. Rac1 {[%emt 0:07:13]} Bd7 {[%emt 0:01:30]} 20. Be5 {[%emt 0:14:02]} Rb3 {[%emt 0:02:57]} 21. Bf1 {[%emt 0:11:07]} Nxe5 {[%emt 0:00:25]} 22. Nxe5 {[%emt 0:00:47]} Be6 {[%emt 0:00:08]} 23. a4 {[%emt 0:03:32]} Ra3 {[%emt 0:02:53]} 24. Rxc7 {[%emt 0:02:03]} Rxa4 {[%emt 0:00:16]} 25. Nc6 {[%emt 0:01:22]} Ra8 {[%emt 0:00:23]} 26. Nd4 {[%emt 0:00:50]} a5 {[%emt 0:03:32]} 27. f3 {[%emt 0:02:45]} Nf6 {[%emt 0:00:08]} 28. g4 {[%emt 0:01:24]} h6 {[%emt 0:00:27]} 29. h4 {[%emt 0:00:14]} Ra3 {[%emt 0:00:49]} 30. Kf2 {[%emt 0:00:10]} a4 {[%emt 0:01:57]} 31. Nxe6 {[%emt 0:00:47]} fxe6 {[%emt 0:00:35]} 32. g5 {[%emt 0:00:36]} hxg5 {[%emt 0:00:15]} 33. hxg5 {[%emt 0:00:06]} Ra2+ {[%emt 0:00:50]} 34. Kg3 {[%emt 0:01:11]} Ne8 {[%emt 0:00:49]} 35. Re7 {[%emt 0:00:50]} a3 {[%emt 0:00:35]} 36. Bh3 {[%emt 0:00:15]} Kf8 {[%emt 0:00:26]} 37. Rd7 {[%emt 0:00:09]} Ra6 {[%emt 0:02:02]} 38. g6 {[%emt 0:00:41]} e5 {[%emt 0:00:24]} 39. Rf7+ {[%emt 0:00:18]} Kg8 {[%emt 0:00:05]} 40. Bf5 {[%emt 0:00:00]} Ra1 {[%emt 0:00:00]} 41. Rxa1 {[%emt 0:00:58]} Nd6 {[%emt 0:20:25]} 42. Be6 {[%emt 0:01:11]} Nxf7 {[%emt 0:00:27]} 43. gxf7+ {[%emt 0:00:09]} Kf8 {[%emt 0:00:07]} 44. Bxd5 {[%emt 0:00:04]} 1-0

[Event "Mitropa Online Cup Open 2021"]
[Site "Hybrid"]
[Date "2021.05.04"]
[Round "8.5"]
[White "Sochacki, Christophe"]
[Black "Basso, Pier Luigi"]
[Result "1/2-1/2"]
[ECO "D10"]
[WhiteElo "2477"]
[BlackElo "2552"]
[Annotator "RC"]
[PlyCount "92"]
[EventDate "2021.05.04"]
[EventType "team-tourn"]
[EventCountry "NET"]
[SourceTitle "playchess.com"]
[Source "ChessBase"]
[SourceQuality "1"]
[WhiteTeam "France"]
[BlackTeam "Italy"]
[WhiteTeamCountry "FRA"]
[BlackTeamCountry "ITA"]
[TimeControl "40/5400+30:1800+30"]

1. d4 {[%emt 0:00:00]} d5 {[%emt 0:00:14]} 2. c4 {[%emt 0:00:10]} c6 {[%emt 0:00:06]} 3. cxd5 {[%emt 0:00:23]} cxd5 {[%emt 0:00:05]} 4. Bf4 {[%emt 0:00:27]} Nc6 {[%emt 0:00:17]} 5. e3 {[%emt 0:00:10]} Bf5 {[%emt 0:01:41]} 6. Qb3 {[%emt 0:11:05]} Qd7 {[%emt 0:00:59]} 7. Nf3 {[%emt 0:02:36]} f6 {[%emt 0:01:40]} 8. Nc3 {[%emt 0:03:33]} e6 {[%emt 0:00:34]} 9. h4 {[%emt 0:07:47]} h5 {[%emt 0:16:11]} 10. Rc1 {[%emt 0:00:29]} Nh6 {[%emt 0:02:06]} 11. Bb5 {[%emt 0:05:11]} Rc8 {[%emt 0:02:08]} 12. Na4 {[%emt 0:02:26]} Nf7 {[%emt 0:01:18]} 13. O-O {[%emt 0:04:30]} Be7 {[%emt 0:03:07]} 14. Nc5 {[%emt 0:02:44]} Bxc5 {[%emt 0:00:40]} 15. Rxc5 {[%emt 0:00:06]} a6 {[%emt 0:06:25]} 16. Bxc6 {[%emt 0:01:42]} Rxc6 {[%emt 0:00:08]} 17. Rfc1 {[%emt 0:12:41]} Nd8 {[%emt 0:01:04]} 18. Nd2 {[%emt 0:07:53]} O-O {[%emt 0:03:10]} 19. Qd1 {[%emt 0:00:31]} Bg6 {[%emt 0:03:10]} 20. Nb3 {[%emt 0:00:16]} b6 {[%emt 0:06:13]} 21. R5c3 {[%emt 0:00:13]} Rxc3 {[%emt 0:04:05]} 22. Rxc3 {[%emt 0:00:09]} Nc6 {[%emt 0:00:17]} 23. Qc1 {[%emt 0:01:58]} Rc8 {[%emt 0:00:21]} 24. a3 {[%emt 0:01:39]} Qb7 {[%emt 0:01:09]} 25. Bg3 {[%emt 0:01:26]} Be8 {[%emt 0:00:39]} 26. Qc2 {[%emt 0:03:47]} Ne7 {[%emt 0:01:48]} 27. Rxc8 {[%emt 0:02:22]} Nxc8 {[%emt 0:01:48]} 28. Nc1 {[%emt 0:00:54]} Bb5 {[%emt 0:02:29]} 29. Ne2 {[%emt 0:02:09]} Bxe2 {[%emt 0:01:17]} 30. Qxe2 {[%emt 0:00:05]} g6 {[%emt 0:00:17]} 31. f3 {[%emt 0:09:28]} Ne7 {[%emt 0:03:55]} 32. e4 {[%emt 0:00:22]} Qc8 {[%emt 0:07:04]} 33. Kh2 {[%emt 0:02:13]} Kf7 {[%emt 0:03:23]} 34. Bd6 {[%emt 0:01:45]} Nc6 {[%emt 0:01:16]} 35. Qe3 {[%emt 0:00:32]} Qd8 {[%emt 0:03:33]} 36. Qf4 {[%emt 0:04:41]} b5 {[%emt 0:08:29]} 37. e5 {[%emt 0:00:18]} Kg7 {[%emt 0:02:59]} 38. exf6+ {[%emt 0:08:42]} Qxf6 {[%emt 0:00:14]} 39. Be5 {[%emt 0:00:29]} Nxe5 {[%emt 0:00:16]} 40. Qxe5 {[%emt 0:00:00]} Qxe5+ {[%emt 0:00:00]} 41. dxe5 {[%emt 0:00:14]} Kf7 {[%emt 0:14:41]} 42. b4 {[%emt 0:02:20]} Ke7 {[%emt 0:00:25]} 43. Kg3 {[%emt 0:00:08]} Kf7 {[%emt 0:01:42]} 44. Kf2 {[%emt 0:00:22]} Kg7 {[%emt 0:00:40]} 45. f4 {[%emt 0:01:23]} Kf7 {[%emt 0:00:10]} 46. Ke3 {[%emt 0:00:06]} Ke7 {[%emt 0:00:15]} 1/2-1/2

[Event "Mitropa Online Cup Open 2021"]
[Site "Hybrid"]
[Date "2021.05.04"]
[Round "9.1"]
[White "Lagarde, Maxime"]
[Black "Prusikin, Michael"]
[Result "0-1"]
[ECO "C28"]
[WhiteElo "2638"]
[BlackElo "2547"]
[Annotator "ChessBase"]
[PlyCount "100"]
[EventDate "2021.05.04"]
[EventType "team-tourn"]
[EventCountry "NET"]
[SourceTitle "playchess.com"]
[Source "ChessBase"]
[SourceQuality "1"]
[WhiteTeam "France"]
[BlackTeam "Germany"]
[WhiteTeamCountry "FRA"]
[BlackTeamCountry "GER"]
[TimeControl "40/5400+30:1800+30"]

1. e4 {[%emt 0:00:08]} e5 {[%emt 0:00:03]} 2. Bc4 {[%emt 0:02:05]} Nf6 {[%emt 0:00:26]} 3. d3 {[%emt 0:00:16]} Nc6 {[%emt 0:00:14]} 4. Nc3 {[%emt 0:02:39]} Bb4 {[%emt 0:00:48]} 5. Nge2 {[%emt 0:01:06]} d5 {[%emt 0:00:10]} 6. exd5 {[%emt 0:00:28]} Nxd5 {[%emt 0:00:06]} 7. O-O {[%emt 0:01:24]} Be6 {[%emt 0:03:03]} 8. a3 {[%emt 0:19:19]} Bxc3 {[%emt 0:02:24]} 9. bxc3 {[%emt 0:00:32]} O-O {[%emt 0:01:29]} 10. Bb3 {[%emt 0:02:17]} Qh4 {[%emt 0:09:30]} 11. Qd2 {[%emt 0:02:05]} Rad8 {[%emt 0:12:16]} 12. c4 {[%emt 0:04:01]} Nde7 {[%emt 0:03:07]} 13. f4 {[%emt 0:01:44]} e4 {[%emt 0:02:35]} 14. Bb2 {[%emt 0:03:56]} Nf5 {[%emt 0:06:11]} 15. Rae1 {[%emt 0:06:42]} Qg4 {[%emt 0:19:40]} 16. Ng3 {[%emt 0:08:02]} Nxg3 {[%emt 0:01:42]} 17. hxg3 {[%emt 0:01:24]} exd3 {[%emt 0:05:59]} 18. cxd3 {[%emt 0:00:54]} Qxg3 {[%emt 0:00:37]} 19. Re3 {[%emt 0:02:58]} Qg6 {[%emt 0:01:03]} 20. Qf2 {[%emt 0:00:52]} Bg4 {[%emt 0:03:03]} 21. Rg3 {[%emt 0:08:22]} h5 {[%emt 0:00:11]} 22. f5 {[%emt 0:05:41]} Qg5 {[%emt 0:00:16]} 23. f6 {[%emt 0:05:45]} g6 {[%emt 0:00:05]} 24. Bc1 {[%emt 0:04:28]} Qh4 {[%emt 0:00:45]} 25. Be3 {[%emt 0:03:56]} Rfe8 {[%emt 0:04:22]} 26. Qf4 {[%emt 0:10:50]} g5 {[%emt 0:02:16]} 27. Qf2 {[%emt 0:00:07]} Nd4 {[%emt 0:04:12]} 28. Bd1 {[%emt 0:01:23]} Nf5 {[%emt 0:01:21]} 29. Rxg4 {[%emt 0:00:33]} Qxf2+ {[%emt 0:01:44]} 30. Rxf2 {[%emt 0:00:32]} hxg4 {[%emt 0:00:13]} 31. Rxf5 {[%emt 0:00:08]} Rxe3 {[%emt 0:00:32]} 32. Rxg5+ {[%emt 0:00:13]} Kh7 {[%emt 0:02:42]} 33. Bxg4 {[%emt 0:00:09]} Kh6 {[%emt 0:03:11]} 34. Rg7 {[%emt 0:00:48]} Rg3 {[%emt 0:00:39]} 35. Kh2 {[%emt 0:00:36]} Rdxd3 {[%emt 0:01:03]} 36. a4 {[%emt 0:00:10]} b6 {[%emt 0:00:59]} 37. Rg8 {[%emt 0:00:35]} a5 {[%emt 0:03:58]} 38. Rg7 {[%emt 0:00:24]} c5 {[%emt 0:00:49]} 39. Rg8 {[%emt 0:00:43]} Rge3 {[%emt 0:00:49]} 40. Rg7 {[%emt 0:00:00]} Rd6 {[%emt 0:00:00]} 41. Rxf7 {[%emt 0:01:44]} Kg6 {[%emt 0:02:36]} 42. Re7 {[%emt 0:00:28]} Rxe7 {[%emt 0:00:35]} 43. fxe7 {[%emt 0:00:10]} Kf7 {[%emt 0:00:05]} 44. Bc8 {[%emt 0:00:16]} Kxe7 {[%emt 0:00:24]} 45. Ba6 {[%emt 0:00:12]} Kf6 {[%emt 0:00:15]} 46. Kh3 {[%emt 0:00:30]} Kg5 {[%emt 0:00:21]} 47. g3 {[%emt 0:00:18]} Rd2 {[%emt 0:00:29]} 48. Bb5 {[%emt 0:00:24]} Rc2 {[%emt 0:00:39]} 49. Ba6 {[%emt 0:00:11]} Rb2 {[%emt 0:00:04]} 50. Bb5 {[%emt 0:00:09]} Rxb5 {[%emt 0:00:19]} 0-1

[Event "Mitropa Online Cup Open 2021"]
[Site "Hybrid"]
[Date "2021.05.04"]
[Round "9.1"]
[White "Parvanyan, Ashot"]
[Black "Sochacki, Christophe"]
[Result "1/2-1/2"]
[ECO "A04"]
[WhiteElo "2436"]
[BlackElo "2477"]
[Annotator "ChessBase"]
[PlyCount "62"]
[EventDate "2021.05.04"]
[EventType "team-tourn"]
[EventCountry "NET"]
[SourceTitle "playchess.com"]
[Source "ChessBase"]
[SourceQuality "1"]
[WhiteTeam "Germany"]
[BlackTeam "France"]
[WhiteTeamCountry "GER"]
[BlackTeamCountry "FRA"]
[TimeControl "40/5400+30:1800+30"]

1. Nf3 {[%emt 0:00:00]} f5 {[%emt 0:00:18]} 2. d3 {[%emt 0:00:58]} d6 {[%emt 0:00:29]} 3. e4 {[%emt 0:01:58]} e5 {[%emt 0:00:11]} 4. Nc3 {[%emt 0:01:41]} Nc6 {[%emt 0:00:41]} 5. exf5 {[%emt 0:01:03]} Nge7 {[%emt 0:00:49]} 6. d4 {[%emt 0:17:43]} exd4 {[%emt 0:00:32]} 7. Nxd4 {[%emt 0:00:08]} Nxd4 {[%emt 0:00:10]} 8. Qxd4 {[%emt 0:00:06]} Nxf5 {[%emt 0:00:10]} 9. Qe4+ {[%emt 0:01:41]} Qe7 {[%emt 0:00:39]} 10. Bd3 {[%emt 0:00:18]} Qxe4+ {[%emt 0:00:16]} 11. Bxe4 {[%emt 0:02:38]} c6 {[%emt 0:00:45]} 12. O-O {[%emt 0:06:50]} d5 {[%emt 0:15:13]} 13. Bd3 {[%emt 0:00:21]} Bd6 {[%emt 0:02:53]} 14. Re1+ {[%emt 0:04:12]} Kf7 {[%emt 0:01:53]} 15. Ne2 {[%emt 0:02:33]} Re8 {[%emt 0:01:50]} 16. Bd2 {[%emt 0:01:09]} g6 {[%emt 0:10:44]} 17. b3 {[%emt 0:05:52]} Ng7 {[%emt 0:06:13]} 18. c4 {[%emt 0:10:33]} dxc4 {[%emt 0:01:11]} 19. Bxc4+ {[%emt 0:00:16]} Be6 {[%emt 0:00:08]} 20. Bxe6+ {[%emt 0:00:40]} Rxe6 {[%emt 0:07:46]} 21. Nd4 {[%emt 0:03:38]} Rxe1+ {[%emt 0:00:50]} 22. Rxe1 {[%emt 0:00:08]} Re8 {[%emt 0:02:03]} 23. Rxe8 {[%emt 0:02:30]} Nxe8 {[%emt 0:00:41]} 24. Kf1 {[%emt 0:01:23]} Nc7 {[%emt 0:02:15]} 25. Ke2 {[%emt 0:07:37]} Ne6 {[%emt 0:02:40]} 26. Nf3 {[%emt 0:05:22]} Kf6 {[%emt 0:07:17]} 27. g3 {[%emt 0:05:10]} Bc5 {[%emt 0:06:37]} 28. Be3 {[%emt 0:01:55]} Kf5 {[%emt 0:01:09]} 29. h3 {[%emt 0:03:45]} h5 {[%emt 0:12:10]} 30. Bxc5 {[%emt 0:05:08]} Nxc5 {[%emt 0:00:13]} 31. Ke3 {[%emt 0:00:02]} a5 {[%emt 0:04:35]} 1/2-1/2